fUSD/lending_fUSD_20240919
["ID","MTS","AMOUNT","RATE_DAILY","PERIOD"]
[338564185,1726737042360,-257.67898506,0.00014712,2]
[338564187,1726737042370,-255.0,0.00014714,2]
[338564189,1726737042380,-154.64786995,0.00014756,2]
[338564191,1726737042390,-159.97802171,0.00014767,2]
[338564192,1726737042399,-300.79194345,0.00014771,2]
[338564193,1726737042408,-150.0,0.00014776,2]
[338564194,1726737042417,-9309.78600432,0.00014783,3]
[338564195,1726737042427,-500.0,0.00014793,2]
[338564196,1726737042436,-500.0,0.00014793,2]
[338564197,1726737042445,-500.0,0.00014793,2]
[338564198,1726737042455,-523.64189783,0.00014793,2]
[338564200,1726737042464,-500.0,0.00014793,2]
[338564201,1726737042482,-500.0,0.00014793,2]
[338564202,1726737042491,-500.0,0.00014794,2]
[338564203,1726737042500,-500.0,0.00014794,2]
[338564204,1726737042509,-500.0,0.00014794,2]
[338564205,1726737042518,-500.0,0.00014794,2]
[338564206,1726737042527,-500.0,0.00014794,2]
[338564207,1726737042536,-500.0,0.00014796,2]
[338564208,1726737042545,-501.88949763,0.00014796,2]
[338564209,1726737042555,-500.0,0.00014796,2]
[338564210,1726737042564,-388.6830051,0.00014796,2]
[338564212,1726737042574,-500.0,0.00014796,2]
[338564213,1726737042583,-249.82544926,0.00014796,2]
[338564214,1726737042593,-500.0,0.00014796,2]
[338564216,1726737042603,-500.0,0.00014796,2]
[338564217,1726737042613,-500.0,0.00014796,2]
[338564218,1726737042622,-9309.78600432,0.00014797,3]
[338564219,1726737042632,-3000.0,0.000148,2]
[338564222,1726737042641,-263.4608584,0.000148,2]
[338564224,1726737042651,-1855.0,0.000148,2]
[338564226,1726737042660,-150.0,0.00014801,2]
[338564230,1726737042670,-257.67898506,0.00014806,2]
[338564234,1726737042679,-1500.0,0.00014807,2]
[338564237,1726737042690,-9309.78600432,0.00014811,3]
[338564240,1726737042699,-500.0,0.00014821,2]
[338564243,1726737042709,-500.0,0.00014821,2]
[338564245,1726737042719,-500.0,0.00014821,2]
[338564247,1726737042729,-500.0,0.00014821,2]
[338564249,1726737042738,-500.0,0.00014821,2]
[338564251,1726737042748,-500.0,0.00014821,2]
[338564252,1726737042997,-366.78692586,0.00014821,2]
[338564253,1726737043014,-500.0,0.00014821,2]
[338564254,1726737043023,-500.0,0.00014821,2]
[338564255,1726737043033,-500.0,0.00014821,2]
[338564256,1726737043046,-500.0,0.00014821,2]
[338564257,1726737043056,-500.0,0.00014821,2]
[338564258,1726737043066,-500.0,0.00014821,2]
[338564259,1726737043075,-500.0,0.00014821,2]
[338564260,1726737043087,-500.0,0.00014821,2]
[338564261,1726737043097,-500.0,0.00014821,2]
[338564262,1726737043107,-500.0,0.00014821,2]
[338564263,1726737043118,-500.0,0.00014821,2]
[338564264,1726737043128,-500.0,0.00014821,2]
[338564265,1726737043138,-500.0,0.00014821,2]
[338564266,1726737043148,-500.0,0.00014821,2]
[338564267,1726737043158,-500.0,0.00014821,2]
[338564268,1726737043168,-500.0,0.00014821,2]
[338564269,1726737043179,-500.0,0.00014821,2]
[338564270,1726737043189,-500.0,0.00014821,2]
[338564271,1726737043199,-500.0,0.00014821,2]
[338564273,1726737043208,-500.0,0.00014821,2]
[338564275,1726737043217,-500.0,0.00014821,2]
[338564277,1726737043227,-620.08,0.00014821,2]
[338564279,1726737043237,-879.17,0.00014821,2]
[338564281,1726737043246,-500.0,0.00014821,2]
[338564282,1726737043256,-500.0,0.00014821,2]
[338564283,1726737043266,-500.0,0.00014821,2]
[338564284,1726737043275,-500.0,0.00014821,2]
[338564285,1726737043285,-500.0,0.00014821,2]
[338564286,1726737043294,-500.0,0.00014821,2]
[338564287,1726737043304,-500.0,0.00014821,2]
[338564288,1726737043313,-500.0,0.00014821,2]
[338564290,1726737043323,-434.46881839,0.00014821,2]
[338564292,1726737043332,-500.0,0.00014821,2]
[338564293,1726737043342,-500.0,0.00014821,2]
[338564294,1726737043351,-843.99,0.00014821,2]
[338564295,1726737043360,-500.0,0.00014821,2]
[338564296,1726737043369,-500.0,0.00014821,2]
[338564297,1726737043378,-500.0,0.00014821,2]
[338564298,1726737043388,-500.0,0.00014821,2]
[338564299,1726737043397,-500.0,0.00014821,2]
[338564300,1726737043407,-500.0,0.00014821,2]
[338564301,1726737043416,-500.0,0.00014821,2]
[338564302,1726737043426,-500.0,0.00014821,2]
[338564303,1726737043435,-500.0,0.00014821,2]
[338564304,1726737043444,-500.0,0.00014821,2]
[338564306,1726737043453,-500.0,0.00014821,2]
[338564308,1726737043462,-500.0,0.00014821,2]
[338564310,1726737043473,-500.0,0.00014821,2]
[338564312,1726737043482,-500.0,0.00014821,2]
[338564315,1726737043492,-500.0,0.00014821,2]
[338564316,1726737043502,-500.0,0.00014821,2]
[338564319,1726737043511,-500.0,0.00014821,2]
[338564321,1726737043520,-500.0,0.00014821,2]
[338564323,1726737043530,-150.0,0.00014824,2]
[338564325,1726737043539,-1298.72072069,0.00014825,2]
[338564327,1726737043548,-150.0,0.00014831,2]
[338564329,1726737043558,-300.79194345,0.00014835,2]
[338564331,1726737043567,-150.0,0.00014836,2]
[338564333,1726737043576,-150.0,0.00014866,2]
[338564335,1726737043586,-500.0,0.0001488,2]
[338564337,1726737043595,-200.0,0.0001488,2]
[338564339,1726737043605,-175.76798512,0.00014884,2]
[338564341,1726737043614,-150.0,0.00014889,2]
[338564343,1726737043624,-150.0,0.00014899,2]
[338564345,1726737043633,-1685.0,0.000149,3]
[338564347,1726737043642,-300.79194345,0.000149,2]
[338564349,1726737043652,-158.10949927,0.000149,2]
[338564351,1726737043661,-1000.0,0.000149,2]
[338564353,1726737043670,-257.67898506,0.000149,2]
[338564355,1726737043680,-150.0,0.00014901,2]
[338564357,1726737043690,-150.0,0.00014905,2]
[338564359,1726737043699,-150.0,0.00014936,2]
[338564361,1726737043708,-159.97802171,0.00014959,2]
[338564363,1726737043717,-9309.78600432,0.0001496,3]
[338564365,1726737043727,-9309.78600432,0.00014966,3]
[338564366,1726737043736,-500.0,0.00014973,2]
[338564369,1726737043745,-607.78,0.00014975,2]
[338564371,1726737043755,-500.0,0.00014975,2]
[338564372,1726737043764,-500.0,0.00014975,2]
[338564375,1726737043773,-500.0,0.00014975,2]
[338564377,1726737043783,-500.0,0.00014975,2]
[338564379,1726737043793,-500.0,0.00014975,2]
[338564381,1726737043802,-500.0,0.00014975,2]
[338564383,1726737043812,-500.0,0.00014975,2]
[338564384,1726737043821,-1081.81,0.00014975,2]
[338564386,1726737043830,-500.0,0.00014975,2]
[338564388,1726737043839,-9309.78600432,0.00014976,3]
[338564390,1726737043848,-1782.29,0.00014976,2]
[338564392,1726737043858,-577.67,0.00014976,2]
[338564394,1726737043867,-5804.36,0.00014976,2]
[338564396,1726737043877,-641.17,0.00014976,2]
[338564398,1726737043886,-892.39,0.00014976,2]
[338564400,1726737043896,-1038.22,0.00014976,2]
[338564402,1726737043906,-500.0,0.00014976,2]
[338564403,1726737043915,-500.0,0.00014976,2]
[338564405,1726737043925,-500.0,0.00014976,2]
[338564407,1726737043934,-500.0,0.00014976,2]
[338564409,1726737043944,-614.75,0.00014976,2]
[338564411,1726737043953,-500.0,0.00014976,2]
[338564413,1726737043963,-500.0,0.00014976,2]
[338564415,1726737043973,-500.0,0.00014976,2]
[338564417,1726737043982,-500.0,0.00014976,2]
[338564419,1726737043992,-1063.45,0.00014976,2]
[338564421,1726737044001,-500.0,0.00014976,2]
[338564423,1726737044011,-666.84,0.00014976,2]
[338564425,1726737044021,-241.47787101,0.00014976,2]
[338564427,1726737044030,-500.0,0.00014976,2]
[338564429,1726737044044,-500.0,0.00014976,2]
[338564431,1726737044054,-500.0,0.00014976,2]
[338564433,1726737044063,-190.8387071,0.00014977,2]
[338564435,1726737044072,-711.43,0.00014977,2]
[338564437,1726737044082,-150.0,0.00014977,2]
[338564439,1726737044091,-500.0,0.00014977,2]
[338564441,1726737044101,-500.0,0.00014977,2]
[338564443,1726737044111,-500.0,0.00014977,2]
[338564445,1726737044120,-500.0,0.00014977,2]
[338564446,1726737044130,-217.85519879,0.00014977,2]
[338564449,1726737044140,-500.0,0.00014977,2]
[338564451,1726737044150,-619.24377645,0.00014977,2]
[338564453,1726737044160,-500.0,0.00014977,2]
[338564455,1726737044173,-500.0,0.00014977,2]
[338564457,1726737044183,-500.0,0.00014977,2]
[338564459,1726737044192,-18619.5720086,0.0001498,3]
[338564461,1726737044201,-150.0,0.0001498,2]
[338564463,1726737044211,-93097.8600432,0.0001498,3]
[338564465,1726737044221,-9309.78600432,0.00014986,3]
[338564467,1726737044230,-150.0,0.00014988,2]
[338564469,1726737044241,-500.0,0.00014989,2]
[338564471,1726737044251,-46548.9300216,0.0001499,3]
[338564473,1726737044262,-150.0,0.0001499,2]
[338564476,1726737044273,-37239.1440173,0.0001499,3]
[338564478,1726737044283,-497.2218252,0.00014996,2]
[338564480,1726737044292,-3697.7841201,0.00014996,2]
[338564482,1726737044302,-617.6447628,0.00014996,2]
[338564484,1726737044312,-1174.6254937,0.00014996,2]
[338564486,1726737044320,-3389.2168955,0.00014996,2]
[338564488,1726737044330,-8755.8812247,0.00014996,2]
[338564490,1726737044341,-3003.27362807,0.00014999,2]
[338564492,1726737044350,-500.0,0.00014999,2]
[338564494,1726737044362,-500.0,0.00014999,2]
[338564496,1726737044371,-500.0,0.00014999,2]
[338564498,1726737044381,-500.0,0.00014999,2]
[338564500,1726737044391,-584.76459322,0.00014999,2]
[338564502,1726737044400,-500.0,0.00014999,2]
[338564504,1726737044410,-150.0,0.00014999,2]
[338564506,1726737044420,-653.0,0.00014999,2]
[338564508,1726737044431,-2225.69382015,0.00015,2]
[338564510,1726737044442,-83243.66634366,0.00015,2]
[338564512,1726737044451,-517928.21361431,0.00015,2]
[338564514,1726737044462,-8328951.09826363,0.00015,2]
[338564516,1726737044472,-1021483.8879033,0.00015,2]
[338564518,1726737044481,-1111067.65916408,0.00015,2]
[338564537,1726737044660,-1590038.14760325,0.00015,2]
[338564539,1726737044672,-953122.71604942,0.00015,2]
[338564541,1726737044681,-200.0,0.00015,7]
[338564543,1726737044690,-3600352.41126149,0.00015,2]
[338564545,1726737044701,-590.62314607,0.00015,2]
[338564548,1726737044717,-2207.52666908,0.00015,2]
[338564550,1726737044728,-16547.05381555,0.00015,2]
[338564552,1726737044739,-561.82928208,0.00015,2]
[338564554,1726737044751,-4100.0,0.00015,2]
[338564557,1726737044762,-1002.95727962,0.00015,2]
[338564559,1726737044774,-1280.80000019,0.00015,2]
[338564568,1726737044859,-173364.1267563,0.00015,2]
[338564570,1726737044870,-12424.74685814,0.00015,2]
[338564572,1726737044881,-2565.0,0.00015,2]
[338564574,1726737044892,-659.2,0.00015,2]
[338564576,1726737044904,-10773.71365922,0.00015,2]
[338564578,1726737044916,-456.33706747,0.00015,2]
[338564580,1726737044930,-6938.0,0.00015,2]
[338564583,1726737044941,-2000.0,0.00015,2]
[338564585,1726737044953,-524.17745525,0.00015,2]
[338564587,1726737044964,-2820.98483153,0.00015,2]
[338564589,1726737044976,-12375.12144053,0.00015,2]
[338564592,1726737044996,-500.0,0.00014976,2]
[338564594,1726737045005,-44576.66594972,0.00015,2]
[338564596,1726737045016,-553.04533327,0.00015,2]
[338564606,1726737045096,-3107.85901998,0.00015,2]
[338564608,1726737045107,-22764.52323437,0.00015,2]
[338564610,1726737045118,-4010.853084,0.00015,2]
[338564613,1726737045137,-1490.48160631,0.00015,2]
[338564615,1726737045149,-533.1,0.00015,2]
[338564617,1726737045164,-94028.51986877,0.00015,2]
[338564620,1726737045175,-2098.83755617,0.00015,2]
[338564622,1726737045185,-55669.48026404,0.00015,2]
[338564624,1726737045200,-661.0,0.00015,2]
[338564626,1726737045211,-475.21517826,0.00015,2]
[338564628,1726737045224,-516.682086,0.00015,2]
[338564629,1726737045281,-2945.39012647,0.00015,2]
[338564630,1726737045292,-312.3160075,0.00015,2]
[338564631,1726737045303,-18760.5019774,0.00015,2]
[338564632,1726737045314,-10795.95706516,0.00015,2]
[338564633,1726737045325,-1633.56266826,0.00015,2]
[338564634,1726737045340,-54434.82433093,0.00015,2]
[338564635,1726737045351,-151115.48834222,0.00015,2]
[338564636,1726737045364,-703.655,0.00015,2]
[338564637,1726737045376,-9203.11958714,0.00015,2]
[338564638,1726737045387,-534.52676263,0.00015,2]
[338564639,1726737045400,-1710.66428866,0.00015,2]
[338564640,1726737045411,-4355.31238879,0.00015,2]
[338564641,1726737045422,-256.89893274,0.00015,2]
[338564642,1726737045433,-86636.95704153,0.00015,2]
[338564643,1726737045443,-11154.02902372,0.00015,2]
[338564644,1726737045454,-388.52572766,0.00015,2]
[338564645,1726737045466,-2933.56225702,0.00015,2]
[338564646,1726737045477,-4307.56043718,0.00015,2]
[338564647,1726737045488,-1065.9793395,0.00015,2]
[338564648,1726737045502,-670.7,0.00015,2]
[338564649,1726737045521,-14402.19677375,0.00015,2]
[338564650,1726737045532,-9531.24449686,0.00015,2]
[338564651,1726737045542,-298.57312534,0.00015,2]
[338564652,1726737046007,-30007.9352037,0.00015,2]
[338564653,1726737046019,-23586.16601673,0.00015,2]
[338564654,1726737046030,-29684.31084554,0.00015,2]
[338564659,1726737046688,-1500.0,0.00015,2]
[338564660,1726737046700,-647.03681964,0.00015,2]
[338564661,1726737046712,-352.96318036,0.00015,2]
[338564662,1726737046728,-1034.61461781,0.00015,2]
[338564663,1726737046863,-3518.04920049,0.00015,2]
[338564664,1726737105698,1100.0,8.972e-05,2]
[338564665,1726737107310,1100.0,0.00010342,2]
[338564666,1726737108929,1100.0,0.00011712,2]
[338564667,1726737271946,480.87,0.00013918,30]
[338564668,1726737416656,1050.0,0.00011,2]
[338564669,1726737556837,156.95,0.00010959,2]
[338564670,1726737614139,274.71,0.00011329,2]
[338564695,1726738048041,300.0,0.000127,4]
[338564696,1726738054930,788.614009,0.00012736,2]
[338564697,1726738106674,456.82,0.00013918,30]
[338564723,1726738232113,-700.0,0.000128,4]
[338564724,1726738232123,-110.86298749,0.00012869,2]
[338564725,1726738232134,-189.13701251,0.00012869,2]
[338564726,1726738232143,-722.32298749,0.0001287,2]
[338564727,1726738232162,-3169.12221538,0.0001287,2]
[338564728,1726738232173,-556.26670477,0.0001287,2]
[338564729,1726738232187,-6233.24204745,0.0001287,2]
[338564737,1726738237931,-340.263356,0.0001287,2]
[338564738,1726738237994,-1004.23906208,0.0001287,2]
[338564739,1726738238056,-6236.87180791,0.0001287,2]
[338564740,1726738238174,-56001.53648161,0.0001287,2]
[338564741,1726738238186,-186.15,0.00012881,2]
[338564742,1726738238196,-1100.0,0.000129,4]
[338564743,1726738238205,-1291.74040374,0.000129,2]
[338564744,1726738238215,-187.7597,0.00012907,2]
[338564745,1726738238224,-500.0,0.00012973,2]
[338564746,1726738238234,-152.99,0.0001299,2]
[338564747,1726738238244,-152.99,0.0001299,2]
[338564748,1726738238253,-152.99,0.0001299,2]
[338564749,1726738238263,-152.99,0.0001299,2]
[338564750,1726738238272,-152.99,0.0001299,2]
[338564751,1726738238282,-152.99,0.0001299,2]
[338564752,1726738238291,-152.99,0.0001299,2]
[338564754,1726738238300,-152.99,0.0001299,2]
[338564756,1726738238309,-152.99,0.0001299,2]
[338564758,1726738238318,-152.99,0.0001299,2]
[338564760,1726738238328,-152.99,0.0001299,2]
[338564762,1726738238337,-152.99,0.0001299,2]
[338564764,1726738238347,-500.0,0.00012999,2]
[338564766,1726738238356,-508.28665965,0.00012999,2]
[338564768,1726738238365,-500.0,0.00012999,2]
[338564770,1726738238375,-500.0,0.00012999,2]
[338564772,1726738238384,-500.0,0.00012999,2]
[338564774,1726738238394,-500.0,0.00012999,2]
[338564776,1726738238405,-480.97113672,0.00012999,2]
[338564778,1726738238415,-3748.50017137,0.00012999,2]
[338564780,1726738238425,-2257926.30137901,0.00013,2]
[338564782,1726738238436,-1780.59956999,0.00013,2]
[338564785,1726738238447,-34583.05063736,0.00013,2]
[338564787,1726738238456,-1100.0,0.00013082,2]
[338564789,1726738238466,-1291.74040372,0.00013186,2]
[338564791,1726738238476,-1291.74040372,0.00013471,2]
[338564793,1726738238485,-194.75826541,0.00013488,2]
[338564795,1726738238495,-250.0,0.00013496,2]
[338564797,1726738238506,-228.78,0.0001356,2]
[338564799,1726738238517,-1000.0,0.00013589,2]
[338564801,1726738238527,-537.28,0.00013591,2]
[338564803,1726738238536,-432.39,0.00013699,2]
[338564805,1726738238546,-151.98,0.00013699,2]
[338564807,1726738238555,-1402.56,0.00013699,2]
[338564809,1726738238564,-205.95140658,0.000137,2]
[338564811,1726738238579,-461.37081932,0.000137,2]
[338564813,1726738238589,-1291.74040372,0.00013757,2]
[338564815,1726738238599,-152.99,0.0001379,2]
[338564817,1726738238609,-152.99,0.0001379,2]
[338564819,1726738238619,-704.38,0.000138,2]
[338564822,1726738238628,-265547.384299,0.000138,3]
[338564824,1726738238639,-25274.5316549,0.000139,3]
[338564826,1726738238649,-500.0,0.00013971,2]
[338564828,1726738238659,-500.0,0.00013971,2]
[338564830,1726738238668,-500.0,0.00013999,2]
[338564832,1726738238678,-505.89549502,0.00014,2]
[338564834,1726738238688,-1291.74040372,0.00014043,2]
[338564836,1726738238698,-420.0,0.00014115,2]
[338564838,1726738238707,-1500.0,0.000142,5]
[338564840,1726738238717,-500.0,0.00014245,2]
[338564842,1726738238726,-500.0,0.00014245,2]
[338564844,1726738238737,-553.0,0.00014268,2]
[338564846,1726738238747,-1894.605,0.00014268,2]
[338564848,1726738238756,-3346.0,0.00014268,2]
[338564850,1726738238766,-248.0,0.00014268,2]
[338564852,1726738238775,-545.138,0.00014268,2]
[338564854,1726738238786,-625.0,0.00014268,2]
[338564856,1726738238795,-150.0,0.00014268,2]
[338564858,1726738238804,-1262.0,0.00014268,2]
[338564860,1726738238814,-1080.0,0.00014268,2]
[338564862,1726738238823,-558.0,0.00014268,2]
[338564864,1726738238833,-508.0,0.00014273,2]
[338564866,1726738238843,-461.37081932,0.000143,2]
[338564868,1726738238853,-1800.0,0.000143,5]
[338564870,1726738238862,-1291.74040372,0.00014329,2]
[338564872,1726738238872,-162.47481656,0.00014384,2]
[338564874,1726738238882,-160.37946623,0.00014384,2]
[338564876,1726738238891,-1402.56,0.00014384,2]
[338564878,1726738238901,-300.0,0.000144,5]
[338564880,1726738238911,-500.0,0.00014427,2]
[338564882,1726738238920,-500.0,0.00014427,2]
[338564884,1726738238930,-500.0,0.00014427,2]
[338564886,1726738238939,-500.0,0.00014427,2]
[338564888,1726738238949,-500.0,0.00014427,2]
[338564890,1726738238959,-500.0,0.00014427,2]
[338564892,1726738238969,-500.0,0.00014427,2]
[338564894,1726738238979,-500.0,0.00014427,2]
[338564896,1726738238988,-563.22,0.00014427,2]
[338564898,1726738238998,-552.33955351,0.00014427,2]
[338564900,1726738239008,-500.0,0.00014427,2]
[338564902,1726738239017,-1100.0,0.00014452,2]
[338564904,1726738239027,-186.15,0.00014491,2]
[338564906,1726738239037,-311.4,0.000145,2]
[338564908,1726738239046,-2003.14,0.000145,2]
[338564910,1726738239056,-300.0,0.000145,5]
[338564912,1726738239066,-500.0,0.00014519,2]
[338564914,1726738239075,-500.0,0.00014519,2]
[338564916,1726738239085,-500.0,0.0001452,2]
[338564918,1726738239094,-500.0,0.0001452,2]
[338564920,1726738239103,-186.11181211,0.0001452,2]
[338564922,1726738239113,-500.0,0.0001452,2]
[338564924,1726738239122,-539.16635174,0.0001452,2]
[338564926,1726738239132,-500.0,0.0001452,2]
[338564928,1726738239141,-212.9258809,0.0001452,2]
[338564930,1726738239151,-500.0,0.0001452,2]
[338564932,1726738239161,-500.0,0.0001452,2]
[338564934,1726738239170,-29039.94,0.00014521,2]
[338564936,1726738239180,-1000.0,0.00014521,2]
[338564938,1726738239190,-162.47481656,0.00014548,2]
[338564940,1726738239199,-421.86233158,0.00014573,2]
[338564942,1726738239209,-160.37946623,0.00014575,2]
[338564944,1726738239218,-300.0,0.000146,5]
[338564946,1726738239227,-1291.74040372,0.00014614,2]
[338564948,1726738239236,-162.47481656,0.00014685,2]
[338564950,1726738239245,-300.0,0.000147,5]
[338564952,1726738239255,-500.0,0.00014701,2]
[338564954,1726738239265,-500.0,0.00014701,2]
[338564956,1726738239274,-500.0,0.00014701,2]
[338564958,1726738239284,-500.0,0.00014701,2]
[338564960,1726738239293,-297.59523557,0.00014701,2]
[338564962,1726738239303,-310.53815194,0.00014701,2]
[338564964,1726738239312,-500.0,0.00014701,2]
[338564966,1726738239321,-500.0,0.00014701,2]
[338564968,1726738239331,-563.22,0.00014701,2]
[338564970,1726738239340,-500.0,0.00014701,2]
[338564972,1726738239349,-160.37946623,0.00014767,2]
[338564974,1726738239359,-152.99,0.00014784,2]
[338564976,1726738239368,-175.95855647,0.00014793,2]
[338564978,1726738239378,-500.0,0.00014793,2]
[338564980,1726738239387,-500.0,0.00014794,2]
[338564982,1726738239396,-500.0,0.00014794,2]
[338564984,1726738239410,-182.73960315,0.00014794,2]
[338564986,1726738239419,-500.0,0.00014794,2]
[338564988,1726738239429,-381.95003502,0.00014794,2]
[338564990,1726738239439,-440.99461235,0.00014794,2]
[338564993,1726738239448,-500.0,0.00014794,2]
[338564995,1726738239458,-500.0,0.00014794,2]
[338564996,1726738239467,-500.0,0.00014794,2]
[338564998,1726738239477,-500.0,0.00014794,2]
[338565000,1726738239486,-500.0,0.00014794,2]
[338565003,1726738239496,-152.88262553,0.00014794,2]
[338565005,1726738239506,-588.7933097,0.00014794,2]
[338565006,1726738239515,-500.0,0.00014794,2]
[338565008,1726738239525,-500.0,0.00014794,2]
[338565010,1726738239534,-198.42038363,0.00014794,2]
[338565012,1726738239543,-500.0,0.00014794,2]
[338565014,1726738239552,-500.0,0.00014794,2]
[338565016,1726738239562,-500.0,0.00014794,2]
[338565018,1726738239571,-500.0,0.00014794,2]
[338565020,1726738239580,-500.0,0.00014794,2]
[338565022,1726738239590,-500.0,0.00014794,2]
[338565024,1726738239599,-500.0,0.00014794,2]
[338565025,1726738239608,-500.0,0.00014794,2]
[338565027,1726738239617,-500.0,0.00014794,2]
[338565029,1726738239627,-500.0,0.00014794,2]
[338565031,1726738239636,-500.0,0.00014794,2]
[338565033,1726738239645,-516.73,0.00014794,2]
[338565035,1726738239658,-500.0,0.00014794,2]
[338565037,1726738239667,-500.0,0.00014794,2]
[338565039,1726738239676,-500.0,0.00014794,2]
[338565041,1726738239686,-500.0,0.00014794,2]
[338565043,1726738239696,-445.53532519,0.00014794,2]
[338565045,1726738239706,-732.64,0.00014794,2]
[338565047,1726738239716,-500.0,0.00014794,2]
[338565049,1726738239725,-500.0,0.00014794,2]
[338565051,1726738239735,-500.0,0.00014794,2]
[338565053,1726738239744,-500.0,0.00014794,2]
[338565054,1726738239754,-500.0,0.00014794,2]
[338565056,1726738239763,-198.71724158,0.00014794,2]
[338565059,1726738239773,-500.0,0.00014794,2]
[338565061,1726738239782,-500.0,0.00014794,2]
[338565063,1726738239792,-500.0,0.00014794,2]
[338565065,1726738239801,-500.0,0.00014794,2]
[338565067,1726738239810,-703.32,0.00014794,2]
[338565069,1726738239820,-500.0,0.00014794,2]
[338565071,1726738239830,-500.0,0.00014794,2]
[338565073,1726738239839,-500.0,0.00014794,2]
[338565075,1726738239848,-500.0,0.00014794,2]
[338565077,1726738239857,-500.0,0.00014794,2]
[338565079,1726738239867,-500.0,0.00014794,2]
[338565081,1726738239876,-500.0,0.00014794,2]
[338565082,1726738239886,-500.0,0.00014794,2]
[338565084,1726738239896,-500.0,0.00014794,2]
[338565087,1726738239906,-531.81,0.00014794,2]
[338565089,1726738239915,-500.0,0.00014794,2]
[338565091,1726738239926,-531.81,0.00014794,2]
[338565093,1726738239936,-500.0,0.00014794,2]
[338565095,1726738239947,-531.81,0.00014794,2]
[338565097,1726738239956,-500.0,0.00014794,2]
[338565099,1726738239966,-531.81,0.00014794,2]
[338565101,1726738239976,-500.0,0.00014794,2]
[338565103,1726738239985,-531.81,0.00014794,2]
[338565105,1726738239995,-500.0,0.00014794,2]
[338565107,1726738240004,-531.81,0.00014794,2]
[338565109,1726738240014,-500.0,0.00014794,2]
[338565110,1726738240024,-531.81,0.00014794,2]
[338565111,1726738240034,-531.81,0.00014794,2]
[338565112,1726738240044,-531.81,0.00014794,2]
[338565113,1726738240053,-531.81,0.00014794,2]
[338565114,1726738240064,-500.0,0.00014794,2]
[338565115,1726738240073,-500.0,0.00014794,2]
[338565116,1726738240083,-500.0,0.00014794,2]
[338565117,1726738240093,-500.0,0.00014794,2]
[338565118,1726738240103,-500.0,0.00014794,2]
[338565119,1726738240113,-500.0,0.00014794,2]
[338565120,1726738240123,-500.0,0.00014794,2]
[338565121,1726738240133,-500.0,0.00014794,2]
[338565122,1726738240143,-500.0,0.00014794,2]
[338565123,1726738240152,-500.0,0.00014794,2]
[338565124,1726738240162,-500.0,0.00014794,2]
[338565125,1726738240172,-500.0,0.00014794,2]
[338565126,1726738240182,-235.8363268,0.00014794,2]
[338565127,1726738240192,-500.0,0.00014794,2]
[338565128,1726738240202,-500.0,0.00014794,2]
[338565129,1726738240212,-382.63799535,0.00014794,2]
[338565130,1726738240222,-500.0,0.00014794,2]
[338565131,1726738240232,-500.0,0.00014794,2]
[338565133,1726738240241,-500.0,0.00014794,2]
[338565135,1726738240251,-500.0,0.00014794,2]
[338565137,1726738240260,-500.0,0.00014794,2]
[338565139,1726738240270,-500.0,0.00014794,2]
[338565141,1726738240279,-500.0,0.00014794,2]
[338565143,1726738240290,-500.0,0.00014794,2]